fUST/lending_fUST_20250302
["ID","MTS","AMOUNT","RATE_DAILY","PERIOD"]
[355038922,1740879049665,-500.0,0.00024673,2]
[355038923,1740879049675,-500.0,0.00024673,2]
[355038924,1740879049684,-500.0,0.000247,2]
[355038925,1740879049693,-500.0,0.000248,2]
[355038926,1740879049704,-7893.7510707,0.00024831,2]
[355038927,1740879049713,-500.0,0.000249,2]
[355038928,1740879049722,-208.84989201,0.00024931,2]
[355038929,1740879049732,-500.0,0.00024931,2]
[355038930,1740879049742,-500.0,0.00024931,2]
[355038931,1740879049753,-500.0,0.00024931,2]
[355038932,1740879049767,-151.0,0.00024931,7]
[355038933,1740879049776,-151.0,0.00024931,7]
[355038934,1740879049785,-151.0,0.00024931,7]
[355038935,1740879049794,-151.0,0.00024931,7]
[355038936,1740879049806,-500.0,0.00024931,2]
[355038937,1740879049816,-460.40740218,0.00024931,2]
[355038938,1740879049825,-500.0,0.00024931,2]
[355038939,1740879049837,-500.0,0.00024931,2]
[355038940,1740879049847,-586.15075589,0.00024931,2]
[355038941,1740879049856,-500.0,0.00024931,2]
[355038942,1740879049866,-500.0,0.00024931,2]
[355038943,1740879049876,-352.92857801,0.00024931,2]
[355038944,1740879049886,-500.0,0.00024931,2]
[355038945,1740879049895,-500.0,0.00024931,2]
[355038946,1740879049905,-500.0,0.00024931,2]
[355038947,1740879049915,-500.0,0.00024931,2]
[355038948,1740879049925,-502.77093405,0.00024931,2]
[355038949,1740879049935,-570.56240796,0.00024931,2]
[355038950,1740879049944,-1166.84,0.00024931,2]
[355038951,1740879049954,-500.0,0.00024931,2]
[355038952,1740879049964,-505.61208101,0.00024931,2]
[355038953,1740879049973,-500.0,0.00024931,2]
[355038954,1740879049982,-500.0,0.00024931,2]
[355038955,1740879049992,-275.79247018,0.00024931,2]
[355038956,1740879050004,-500.0,0.00024931,2]
[355038957,1740879050014,-500.0,0.00024931,2]
[355038958,1740879050023,-500.0,0.00024931,2]
[355038959,1740879050032,-500.0,0.00024931,2]
[355038960,1740879050042,-193.60664695,0.00024931,2]
[355038961,1740879050051,-500.0,0.00024931,2]
[355038962,1740879050062,-500.0,0.00024931,2]
[355038963,1740879050071,-500.0,0.00024931,2]
[355038964,1740879050081,-500.0,0.00024931,2]
[355038965,1740879050091,-500.0,0.00024931,2]
[355038966,1740879050100,-500.0,0.00024931,2]
[355038967,1740879050109,-500.0,0.00024931,2]
[355038968,1740879050119,-419.6617349,0.00024931,2]
[355038969,1740879050129,-500.0,0.00024931,2]
[355038970,1740879050138,-634.47852463,0.00024931,2]
[355038971,1740879050147,-500.0,0.00024931,2]
[355038972,1740879050157,-500.0,0.00024931,2]
[355038973,1740879050167,-500.0,0.00024931,2]
[355038974,1740879050177,-500.0,0.00024931,2]
[355038975,1740879050187,-500.0,0.00024931,2]
[355038976,1740879050196,-500.0,0.00024931,2]
[355038977,1740879050205,-500.0,0.00024931,2]
[355038978,1740879050215,-500.0,0.00024931,2]
[355038979,1740879050224,-500.0,0.00024931,2]
[355038980,1740879050234,-529.76,0.00024931,2]
[355038981,1740879050243,-553.01,0.00024931,2]
[355038982,1740879050256,-500.0,0.00024931,2]
[355038983,1740879050266,-502.81663997,0.00024931,2]
[355038984,1740879050276,-500.0,0.00024931,2]
[355038985,1740879050286,-500.0,0.00024931,2]
[355038986,1740879050296,-500.0,0.00024931,2]
[355038987,1740879050306,-500.0,0.00024931,2]
[355038988,1740879050316,-500.0,0.00024931,2]
[355038989,1740879050326,-500.0,0.00024931,2]
[355038990,1740879050337,-500.0,0.00024931,2]
[355038991,1740879050348,-500.0,0.00024931,2]
[355038992,1740879050358,-500.0,0.00024931,2]
[355038993,1740879050368,-500.0,0.00024931,2]
[355038994,1740879050378,-500.0,0.00024931,2]
[355038995,1740879050388,-500.0,0.00024931,2]
[355038996,1740879050398,-500.0,0.00024931,2]
[355038997,1740879050409,-500.0,0.00024931,2]
[355038998,1740879050419,-834.67,0.00024931,2]
[355038999,1740879050428,-500.0,0.00024931,2]
[355039000,1740879050438,-509.99542048,0.00024931,2]
[355039001,1740879050447,-500.0,0.00024931,2]
[355039002,1740879050457,-500.0,0.00024931,2]
[355039003,1740879050466,-505.41650911,0.00024931,2]
[355039004,1740879050477,-502.60845114,0.00024931,2]
[355039005,1740879050486,-791.41,0.00024931,2]
[355039006,1740879050498,-500.0,0.00024931,2]
[355039007,1740879050509,-500.0,0.00024931,2]
[355039008,1740879050519,-500.0,0.00024931,2]
[355039009,1740879050529,-500.0,0.00024931,2]
[355039010,1740879050539,-200.0,0.00024931,2]
[355039011,1740879050549,-586.21,0.00024931,2]
[355039012,1740879050559,-500.0,0.00024931,2]
[355039013,1740879050569,-500.0,0.00024931,2]
[355039014,1740879050578,-641.35,0.00024931,2]
[355039015,1740879050588,-500.0,0.00024931,2]
[355039016,1740879050599,-500.0,0.00024931,2]
[355039017,1740879050609,-780.84,0.00024931,2]
[355039018,1740879050620,-500.0,0.00024931,2]
[355039019,1740879050630,-500.0,0.00024931,2]
[355039020,1740879050640,-464.74502592,0.00024931,2]
[355039021,1740879050649,-1010.03,0.00024931,2]
[355039022,1740879050659,-500.0,0.00024931,2]
[355039023,1740879050669,-500.0,0.00024931,2]
[355039024,1740879050679,-500.0,0.00024931,2]
[355039025,1740879050690,-630.05,0.00024931,2]
[355039026,1740879050700,-500.0,0.00024931,2]
[355039027,1740879050711,-500.0,0.00024931,2]
[355039028,1740879050720,-500.0,0.00024931,2]
[355039029,1740879050731,-500.0,0.00024931,2]
[355039030,1740879050742,-500.0,0.00024931,2]
[355039031,1740879050756,-500.0,0.00024931,2]
[355039032,1740879050767,-500.0,0.00024931,2]
[355039033,1740879050778,-500.0,0.00024931,2]
[355039034,1740879050789,-500.0,0.00024931,2]
[355039035,1740879050799,-567.96,0.00024931,2]
[355039036,1740879050809,-500.0,0.00024931,2]
[355039037,1740879050818,-500.0,0.00024931,2]
[355039038,1740879050828,-923.05,0.00024931,2]
[355039039,1740879050839,-500.0,0.00024931,2]
[355039040,1740879050848,-500.0,0.00024931,2]
[355039041,1740879050858,-500.0,0.00024931,2]
[355039042,1740879050867,-500.0,0.00024931,2]
[355039043,1740879050876,-534.34,0.00024931,2]
[355039044,1740879050886,-1219.47,0.00024931,2]
[355039045,1740879050895,-402.94456754,0.00024931,2]
[355039046,1740879050905,-500.0,0.00024931,2]
[355039047,1740879050915,-500.0,0.00024931,2]
[355039048,1740879050924,-500.0,0.00024931,2]
[355039049,1740879050934,-500.0,0.00024931,2]
[355039050,1740879050944,-692.23,0.00024931,2]
[355039051,1740879050953,-500.0,0.00024931,2]
[355039052,1740879050963,-249.66421629,0.00024931,2]
[355039053,1740879050973,-500.0,0.00024931,2]
[355039054,1740879050983,-1123.88,0.00024931,2]
[355039055,1740879050992,-500.0,0.00024931,2]
[355039056,1740879051002,-500.0,0.00024931,2]
[355039057,1740879051011,-500.0,0.00024931,2]
[355039058,1740879051020,-500.0,0.00024931,2]
[355039059,1740879051030,-500.0,0.00024931,2]
[355039060,1740879051040,-500.0,0.00024931,2]
[355039061,1740879051049,-500.0,0.00024931,2]
[355039062,1740879051059,-500.0,0.00024931,2]
[355039063,1740879051068,-500.0,0.00024931,2]
[355039064,1740879051078,-500.0,0.00024931,2]
[355039065,1740879051087,-500.87,0.00024931,2]
[355039066,1740879051097,-500.0,0.00024931,2]
[355039067,1740879051106,-500.0,0.00024931,2]
[355039068,1740879051116,-500.0,0.00024931,2]
[355039069,1740879051126,-500.0,0.00024931,2]
[355039070,1740879051135,-500.0,0.00024931,2]
[355039071,1740879051145,-500.0,0.00024931,2]
[355039072,1740879051230,-606.15,0.00024931,2]
[355039073,1740879051242,-976.64,0.00024931,2]
[355039074,1740879051253,-500.0,0.00024931,2]
[355039075,1740879051262,-1480.65,0.00024931,2]
[355039076,1740879051272,-500.0,0.00024931,2]
[355039077,1740879051282,-500.0,0.00024931,2]
[355039078,1740879051291,-500.0,0.00024931,2]
[355039079,1740879051301,-500.0,0.00024931,2]
[355039080,1740879051310,-1035.01,0.00024931,2]
[355039081,1740879051320,-500.0,0.00024931,2]
[355039082,1740879051329,-797.6,0.00024931,2]
[355039083,1740879051339,-500.0,0.00024931,2]
[355039084,1740879051349,-500.0,0.00024931,2]
[355039085,1740879051358,-500.0,0.00024931,2]
[355039086,1740879051368,-500.0,0.00024931,2]
[355039087,1740879051377,-500.0,0.00024931,2]
[355039088,1740879051386,-500.0,0.00024931,2]
[355039089,1740879051396,-500.0,0.00024931,2]
[355039090,1740879051405,-500.0,0.00024931,2]
[355039091,1740879051415,-546.03,0.00024931,2]
[355039092,1740879051425,-500.0,0.00024931,2]
[355039093,1740879051434,-500.0,0.00024931,2]
[355039094,1740879051444,-500.0,0.00024931,2]
[355039095,1740879051453,-500.0,0.00024931,2]
[355039096,1740879051464,-500.0,0.00024931,2]
[355039097,1740879051474,-500.0,0.00024931,2]
[355039098,1740879051483,-500.0,0.00024931,2]
[355039099,1740879051493,-1108.97,0.00024931,2]
[355039100,1740879051504,-500.0,0.00024931,2]
[355039101,1740879051514,-678.8,0.00024931,2]
[355039102,1740879051524,-500.0,0.00024931,2]
[355039103,1740879051533,-1456.12,0.00024931,2]
[355039104,1740879051543,-1412.95,0.00024931,2]
[355039105,1740879051553,-500.0,0.00024931,2]
[355039106,1740879051563,-790.75,0.00024931,2]
[355039107,1740879051572,-568.49,0.00024931,2]
[355039108,1740879051582,-500.0,0.00024931,2]
[355039109,1740879051592,-500.0,0.00024931,2]
[355039110,1740879051601,-840.92,0.00024931,2]
[355039111,1740879051611,-500.0,0.00024931,2]
[355039112,1740879051621,-550.18,0.00024931,2]
[355039113,1740879051630,-500.0,0.00024931,2]
[355039114,1740879051639,-500.0,0.00024931,2]
[355039115,1740879051649,-503.43214631,0.00024931,2]
[355039116,1740879051658,-520.44539865,0.00024931,2]
[355039117,1740879051667,-500.0,0.00024931,2]
[355039118,1740879051676,-500.0,0.00024931,2]
[355039119,1740879051685,-500.0,0.00024931,2]
[355039120,1740879051694,-500.0,0.00024931,2]
[355039121,1740879051703,-500.0,0.00024931,2]
[355039122,1740879051712,-632.5,0.00024931,2]
[355039123,1740879051721,-500.0,0.00024931,2]
[355039124,1740879051730,-500.0,0.00024931,2]
[355039125,1740879051741,-1237.3,0.00024931,2]
[355039126,1740879051753,-500.0,0.00024931,2]
[355039127,1740879051763,-855.71,0.00024931,2]
[355039128,1740879051772,-500.0,0.00024931,2]
[355039129,1740879051782,-500.0,0.00024931,2]
[355039130,1740879051792,-500.0,0.00024931,2]
[355039131,1740879051800,-614.18,0.00024931,2]
[355039132,1740879051810,-572.77,0.00024931,2]
[355039133,1740879051820,-500.0,0.00024931,2]
[355039134,1740879051830,-1853.6,0.00024931,2]
[355039135,1740879051839,-500.0,0.00024931,2]
[355039136,1740879051849,-500.0,0.00024931,2]
[355039137,1740879051858,-500.0,0.00024931,2]
[355039138,1740879051867,-500.0,0.00024931,2]
[355039139,1740879051876,-500.0,0.00024931,2]
[355039140,1740879051886,-500.0,0.00024931,2]
[355039141,1740879051895,-500.0,0.00024931,2]
[355039142,1740879051904,-1973.28,0.00024931,2]
[355039143,1740879051913,-1740.77,0.00024931,2]
[355039144,1740879051923,-1229.28,0.00024931,2]
[355039145,1740879051932,-500.0,0.00024931,2]
[355039146,1740879051941,-500.0,0.00024931,2]
[355039147,1740879051950,-500.0,0.00024931,2]
[355039148,1740879051959,-500.0,0.00024931,2]
[355039149,1740879051968,-500.0,0.00024931,2]
[355039150,1740879051977,-500.0,0.00024931,2]
[355039151,1740879051986,-500.0,0.00024931,2]
[355039152,1740879051995,-1058.84,0.00024931,2]
[355039153,1740879052005,-500.0,0.00024931,2]
[355039154,1740879052014,-500.0,0.00024931,2]
[355039155,1740879052023,-500.0,0.00024931,2]
[355039156,1740879052033,-500.0,0.00024931,2]
[355039157,1740879052042,-500.0,0.00024931,2]
[355039158,1740879052051,-500.0,0.00024931,2]
[355039159,1740879052060,-500.0,0.00024931,2]
[355039160,1740879052069,-1760.85,0.00024931,2]
[355039161,1740879052078,-500.0,0.00024931,2]
[355039162,1740879052088,-500.0,0.00024931,2]
[355039163,1740879052097,-500.0,0.00024931,2]
[355039164,1740879052106,-763.8,0.00024931,2]
[355039165,1740879052115,-535.91,0.00024931,2]
[355039166,1740879052125,-500.0,0.00024931,2]
[355039167,1740879052134,-518.81,0.00024931,2]
[355039168,1740879052143,-500.0,0.00024931,2]
[355039169,1740879052152,-580.95329574,0.00024931,2]
[355039170,1740879052161,-789.87,0.00024931,2]
[355039171,1740879052170,-1169.18,0.00024931,2]
[355039172,1740879052180,-823.54,0.00024931,2]
[355039173,1740879052189,-727.61,0.00024931,2]
[355039174,1740879052198,-500.0,0.00024931,2]
[355039175,1740879052209,-500.0,0.00024931,2]
[355039176,1740879052218,-500.0,0.00024931,2]
[355039177,1740879052228,-500.0,0.00024931,2]
[355039178,1740879052237,-500.0,0.00024931,2]
[355039179,1740879052246,-500.0,0.00024931,2]
[355039180,1740879052256,-500.0,0.00024931,2]
[355039181,1740879052265,-679.28,0.00024931,2]
[355039182,1740879052274,-1156.15,0.00024931,2]
[355039183,1740879052284,-500.0,0.00024931,2]
[355039184,1740879052293,-500.0,0.00024931,2]
[355039185,1740879052302,-500.0,0.00024931,2]
[355039186,1740879052311,-507.26556762,0.00024931,2]
[355039187,1740879052321,-643.8,0.00024931,2]
[355039188,1740879052330,-500.0,0.00024931,2]
[355039189,1740879052339,-500.0,0.00024931,2]
[355039190,1740879052348,-500.0,0.00024931,2]
[355039191,1740879052358,-500.0,0.00024931,2]
[355039192,1740879052367,-257.09457532,0.00024931,2]
[355039193,1740879052376,-500.0,0.00024931,2]
[355039194,1740879052385,-500.0,0.00024931,2]
[355039195,1740879052394,-500.0,0.00024931,2]
[355039196,1740879052404,-500.0,0.00024931,2]
[355039197,1740879052413,-2965.91,0.00024931,2]
[355039198,1740879052422,-500.0,0.00024931,2]
[355039199,1740879052431,-500.0,0.00024931,2]
[355039200,1740879052441,-767.25,0.00024931,2]
[355039201,1740879052450,-345.33652339,0.00024931,2]
[355039202,1740879052459,-585.61,0.00024931,2]
[355039203,1740879052469,-500.0,0.00024931,2]
[355039204,1740879052478,-500.0,0.00024931,2]
[355039205,1740879052488,-500.0,0.00024931,2]
[355039206,1740879052497,-500.0,0.00024931,2]
[355039207,1740879052507,-500.0,0.00024931,2]
[355039208,1740879052516,-500.0,0.00024931,2]
[355039209,1740879052526,-1000.0,0.00024931,2]
[355039210,1740879052535,-1366.57,0.00024931,2]
[355039211,1740879052544,-500.0,0.00024931,2]
[355039212,1740879052554,-500.0,0.00024931,2]
[355039213,1740879052563,-2095.11,0.00024931,2]
[355039214,1740879052573,-500.0,0.00024931,2]
[355039215,1740879052582,-500.0,0.00024931,2]
[355039216,1740879052591,-597.85,0.00024931,2]
[355039217,1740879052601,-500.0,0.00024931,2]
[355039218,1740879052611,-500.0,0.00024931,2]
[355039219,1740879052620,-2187.03,0.00024931,2]
[355039220,1740879052630,-500.0,0.00024931,2]
[355039221,1740879052639,-505.1786092,0.00024931,2]
[355039222,1740879052648,-500.0,0.00024931,2]
[355039223,1740879052658,-500.0,0.00024931,2]
[355039224,1740879052667,-500.0,0.00024931,2]
[355039225,1740879052676,-500.0,0.00024931,2]
[355039226,1740879052685,-500.0,0.00024931,2]
[355039227,1740879052694,-2600.88,0.00024931,2]
[355039228,1740879052704,-500.0,0.00024931,2]
[355039229,1740879052713,-500.0,0.00024931,2]
[355039230,1740879052723,-500.0,0.00024931,2]
[355039231,1740879052732,-353.42112393,0.00024931,2]
[355039232,1740879052742,-645.37290114,0.00024931,2]
[355039233,1740879052753,-500.0,0.00024931,2]
[355039234,1740879052768,-500.0,0.00024931,2]
[355039235,1740879052778,-500.0,0.00024931,2]
[355039236,1740879052787,-500.0,0.00024931,2]
[355039237,1740879052797,-1469.09,0.00024931,2]
[355039238,1740879052809,-500.0,0.00024931,2]
[355039239,1740879052819,-500.0,0.00024931,2]
[355039240,1740879052828,-500.0,0.00024931,2]
[355039241,1740879052838,-500.0,0.00024931,2]
[355039242,1740879052847,-1195.67,0.00024931,2]
[355039243,1740879052858,-500.0,0.00024931,2]
[355039244,1740879052868,-500.0,0.00024931,2]
[355039245,1740879052877,-500.0,0.00024931,2]
[355039246,1740879052887,-500.0,0.00024931,2]
[355039247,1740879052896,-500.0,0.00024931,2]
[355039248,1740879052906,-500.0,0.00024931,2]
[355039249,1740879052915,-514.09717767,0.00024931,2]
[355039250,1740879052925,-500.0,0.00024931,2]
[355039251,1740879052935,-500.0,0.00024931,2]
[355039252,1740879052944,-500.0,0.00024931,2]
[355039253,1740879052954,-500.0,0.00024931,2]
[355039254,1740879052963,-500.0,0.00024931,2]
[355039255,1740879052972,-500.0,0.00024931,2]
[355039256,1740879052982,-500.0,0.00024931,2]
[355039257,1740879052991,-500.0,0.00024931,2]
[355039258,1740879053002,-500.0,0.00024931,2]
[355039259,1740879053011,-500.0,0.00024931,2]
[355039260,1740879053021,-546.27,0.00024931,2]
[355039261,1740879053030,-981.6,0.00024931,2]
[355039262,1740879053039,-500.0,0.00024931,2]
[355039263,1740879053049,-500.0,0.00024931,2]
[355039264,1740879053058,-500.0,0.00024931,2]
[355039265,1740879053067,-500.0,0.00024931,2]
[355039266,1740879053076,-1998.47,0.00024931,2]
[355039267,1740879053088,-500.0,0.00024931,2]
[355039268,1740879053097,-500.0,0.00024931,2]
[355039269,1740879053106,-500.0,0.00024931,2]
[355039270,1740879053115,-500.0,0.00024931,2]
[355039271,1740879053124,-500.0,0.00024931,2]
[355039272,1740879053134,-500.0,0.00024931,2]
[355039273,1740879053144,-500.0,0.00024931,2]
[355039274,1740879053153,-500.0,0.00024931,2]
[355039275,1740879053162,-500.0,0.00024931,2]
[355039276,1740879053171,-1132.58,0.00024931,2]
[355039277,1740879053180,-1390.75,0.00024931,2]
[355039278,1740879053190,-500.0,0.00024931,2]
[355039279,1740879053199,-500.0,0.00024931,2]
[355039280,1740879053208,-750.61,0.00024931,2]
[355039281,1740879053217,-1225.65,0.00024931,2]
[355039282,1740879053227,-500.0,0.00024931,2]
[355039283,1740879053236,-500.0,0.00024931,2]
[355039284,1740879053245,-500.0,0.00024931,2]
[355039285,1740879053255,-500.0,0.00024931,2]
[355039286,1740879053264,-500.0,0.00024931,2]
[355039287,1740879053276,-500.0,0.00024931,2]
[355039288,1740879053285,-505.34708335,0.00024931,2]
[355039289,1740879053294,-500.0,0.00024931,2]
[355039290,1740879053303,-2942.81,0.00024931,2]
[355039291,1740879053313,-500.0,0.00024931,2]
[355039292,1740879053323,-500.0,0.00024931,2]
[355039293,1740879053332,-500.0,0.00024931,2]
[355039294,1740879053342,-500.0,0.00024931,2]
[355039295,1740879053351,-687.27,0.00024931,2]
[355039296,1740879053361,-500.0,0.00024931,2]
[355039297,1740879053370,-546.92,0.00024931,2]
[355039298,1740879053379,-500.0,0.00024931,2]
[355039299,1740879053390,-500.0,0.00024931,2]
[355039300,1740879053399,-500.0,0.00024931,2]
[355039301,1740879053409,-500.0,0.00024931,2]
[355039302,1740879053418,-6653.65,0.00024931,2]
[355039303,1740879053427,-531.68,0.00024931,2]
[355039304,1740879053437,-500.0,0.00024931,2]
[355039305,1740879053446,-500.0,0.00024931,2]
[355039306,1740879053456,-500.0,0.00024931,2]
[355039307,1740879053465,-500.0,0.00024931,2]
[355039308,1740879053475,-787.34,0.00024931,2]
[355039309,1740879053485,-515.39,0.00024931,2]
[355039310,1740879053494,-500.0,0.00024931,2]
[355039311,1740879053505,-510.39520217,0.00024931,2]
[355039312,1740879053515,-798.9,0.00024931,2]
[355039313,1740879053525,-921.01,0.00024931,2]
[355039314,1740879053535,-1357.37,0.00024931,2]
[355039315,1740879053545,-500.0,0.00024931,2]
[355039316,1740879053555,-500.0,0.00024931,2]
[355039317,1740879053564,-1253.57,0.00024931,2]
[355039318,1740879053574,-1100.26,0.00024931,2]
[355039319,1740879053583,-500.0,0.00024931,2]
[355039320,1740879053593,-500.0,0.00024931,2]
[355039321,1740879053603,-500.0,0.00024931,2]
[355039322,1740879053613,-500.0,0.00024931,2]
[355039323,1740879053623,-500.0,0.00024931,2]
[355039324,1740879053633,-500.0,0.00024931,2]
[355039325,1740879053643,-500.0,0.00024931,2]
[355039326,1740879053653,-500.0,0.00024931,2]
[355039327,1740879053668,-304.40893929,0.00024931,2]
[355039328,1740879053678,-521.48031741,0.00024931,2]
[355039329,1740879053688,-1064.91,0.00024931,2]
[355039330,1740879053698,-1028.64,0.00024931,2]
[355039331,1740879053708,-500.0,0.00024931,2]
[355039332,1740879053717,-500.0,0.00024931,2]
[355039333,1740879053727,-953.5,0.00024931,2]
[355039334,1740879053737,-500.0,0.00024931,2]
[355039335,1740879053749,-500.0,0.00024931,2]
[355039336,1740879053761,-500.0,0.00024931,2]
[355039337,1740879053771,-500.0,0.00024931,2]
[355039338,1740879053780,-500.0,0.00024931,2]
[355039339,1740879053791,-500.0,0.00024931,2]
[355039340,1740879053801,-500.0,0.00024931,2]
[355039341,1740879053811,-503.15627078,0.00024931,2]
[355039342,1740879053821,-1357.74,0.00024931,2]
[355039343,1740879053831,-500.0,0.00024931,2]
[355039344,1740879053843,-500.0,0.00024931,2]
[355039345,1740879053853,-2304.27,0.00024931,2]
[355039346,1740879053863,-500.0,0.00024931,2]
[355039347,1740879053873,-500.0,0.00024931,2]
[355039348,1740879053882,-500.0,0.00024931,2]
[355039349,1740879053892,-913.09,0.00024931,2]
[355039350,1740879053902,-500.0,0.00024931,2]
[355039351,1740879053912,-616.8,0.00024931,2]
[355039352,1740879053922,-500.0,0.00024931,2]
[355039353,1740879053932,-500.0,0.00024931,2]
[355039354,1740879053942,-500.0,0.00024931,2]
[355039355,1740879053952,-500.0,0.00024931,2]
[355039356,1740879053961,-500.0,0.00024931,2]
[355039357,1740879053971,-530.27,0.00024931,2]
[355039358,1740879053981,-505.41560755,0.00024931,2]
[355039359,1740879053991,-500.0,0.00024931,2]
[355039360,1740879054001,-1322.93,0.00024931,2]
[355039361,1740879054011,-500.0,0.00024931,2]
[355039362,1740879054020,-2037.26,0.00024931,2]
[355039363,1740879054030,-500.0,0.00024931,2]
[355039364,1740879054040,-500.0,0.00024931,2]
[355039365,1740879054050,-500.0,0.00024931,2]
[355039366,1740879054061,-228894.7,0.00024931,2]
[355039367,1740879054070,-500.0,0.00024931,2]
[355039368,1740879054080,-500.0,0.00024931,2]
[355039369,1740879054090,-5273.75,0.00024931,2]
[355039370,1740879054100,-500.0,0.00024931,2]
[355039371,1740879054110,-3865.73,0.00024931,2]
[355039372,1740879054120,-502.83082151,0.00024931,2]
[355039373,1740879054130,-343.43110475,0.00024931,2]
[355039374,1740879054140,-500.0,0.00024931,2]
[355039375,1740879054150,-774.46,0.00024931,2]
[355039376,1740879054160,-500.0,0.00024931,2]
[355039377,1740879054170,-500.0,0.00024931,2]
[355039378,1740879054180,-1845.43,0.00024931,2]
[355039379,1740879054190,-500.0,0.00024931,2]
[355039380,1740879054200,-500.0,0.00024931,2]
[355039381,1740879054210,-500.0,0.00024931,2]
[355039382,1740879054220,-500.0,0.00024931,2]
[355039383,1740879054229,-445.18743021,0.00024931,2]
[355039384,1740879054239,-500.0,0.00024931,2]
[355039385,1740879054249,-2547.98,0.00024931,2]
[355039386,1740879054259,-508.43,0.00024931,2]
[355039387,1740879054269,-500.0,0.00024931,2]
[355039388,1740879054279,-1042.11,0.00024931,2]
[355039389,1740879054289,-500.0,0.00024931,2]
[355039390,1740879054298,-4735.09,0.00024931,2]
[355039391,1740879054308,-500.0,0.00024931,2]
[355039392,1740879054318,-887.32,0.00024931,2]
[355039393,1740879054327,-500.0,0.00024931,2]
[355039394,1740879054337,-500.0,0.00024931,2]
[355039395,1740879054347,-500.0,0.00024931,2]
[355039396,1740879054358,-500.0,0.00024931,2]
[355039397,1740879054367,-1654.79,0.00024931,2]
[355039398,1740879054377,-500.0,0.00024931,2]
[355039399,1740879054387,-571.36,0.00024931,2]
[355039400,1740879054397,-500.0,0.00024931,2]
[355039401,1740879054407,-2534.25,0.00024931,2]
[355039402,1740879054416,-500.0,0.00024931,2]
[355039403,1740879054426,-500.0,0.00024931,2]
[355039404,1740879054436,-500.0,0.00024931,2]
[355039405,1740879054446,-500.0,0.00024931,2]
[355039406,1740879054455,-757.87,0.00024931,2]
[355039407,1740879054465,-500.0,0.00024931,2]
[355039408,1740879054475,-500.0,0.00024931,2]
[355039409,1740879054485,-500.0,0.00024931,2]
[355039410,1740879054495,-500.0,0.00024931,2]
[355039411,1740879054506,-500.0,0.00024931,2]
[355039412,1740879054516,-500.0,0.00024931,2]
[355039413,1740879054526,-746.63,0.00024931,2]
[355039414,1740879054536,-500.0,0.00024931,2]
[355039415,1740879054546,-2132.63,0.00024931,2]
[355039416,1740879054556,-5714.61,0.00024931,2]
[355039417,1740879054566,-685.05,0.00024931,2]
[355039418,1740879054576,-500.0,0.00024931,2]
[355039419,1740879054586,-500.0,0.00024931,2]
[355039420,1740879054596,-1619.9,0.00024931,2]
[355039421,1740879054606,-830.83,0.00024931,2]